fUSD/lending_fUSD_20240919
["ID","MTS","AMOUNT","RATE_DAILY","PERIOD"]
[338534675,1726721487314,-1567.12,0.00014916,2]
[338534676,1726721487323,-500.0,0.00014916,2]
[338534677,1726721487333,-2137.82,0.00014916,2]
[338534678,1726721487343,-2542.22,0.00014916,2]
[338534679,1726721487353,-500.0,0.00014916,2]
[338534680,1726721487363,-1031.79,0.00014916,2]
[338534681,1726721487374,-500.0,0.00014916,2]
[338534682,1726721487384,-433.73,0.00014916,2]
[338534683,1726721487394,-500.0,0.00014916,2]
[338534684,1726721487405,-290.8125433,0.00014916,2]
[338534685,1726721487416,-1979.95,0.00014916,2]
[338534686,1726721487427,-718.39,0.00014916,2]
[338534687,1726721487438,-500.0,0.00014916,2]
[338534688,1726721487448,-2404.47,0.00014916,2]
[338534689,1726721487458,-3103.02,0.00014916,2]
[338534690,1726721487468,-796.58,0.00014916,2]
[338534691,1726721487479,-235.56362701,0.00014916,2]
[338534692,1726721487490,-500.0,0.00014916,2]
[338534693,1726721487500,-1970.3,0.00014916,2]
[338534694,1726721487511,-500.0,0.00014916,2]
[338534695,1726721487521,-852.6,0.00014916,2]
[338534696,1726721487531,-500.0,0.00014916,2]
[338534697,1726721487542,-1157.46,0.00014916,2]
[338534698,1726721487552,-500.0,0.00014916,2]
[338534699,1726721487563,-500.0,0.00014916,2]
[338534700,1726721487573,-4549.72,0.00014916,2]
[338534701,1726721487583,-500.0,0.00014916,2]
[338534702,1726721487593,-500.0,0.00014916,2]
[338534703,1726721487603,-500.0,0.00014916,2]
[338534704,1726721487614,-500.0,0.00014916,2]
[338534705,1726721487624,-1025.3,0.00014916,2]
[338534706,1726721487634,-500.0,0.00014916,2]
[338534707,1726721487643,-500.0,0.00014916,2]
[338534708,1726721487653,-500.0,0.00014916,2]
[338534709,1726721487664,-500.0,0.00014916,2]
[338534710,1726721487674,-5067.65,0.00014916,2]
[338534711,1726721487684,-2336.68,0.00014916,2]
[338534712,1726721487695,-1015.0,0.00014916,2]
[338534713,1726721487705,-2447.39,0.00014916,2]
[338534714,1726721487716,-500.0,0.00014916,2]
[338534715,1726721487726,-500.0,0.00014916,2]
[338534716,1726721487737,-1390.48,0.00014916,2]
[338534717,1726721487747,-665.9,0.00014916,2]
[338534718,1726721487757,-500.0,0.00014916,2]
[338534719,1726721487768,-552.52,0.00014916,2]
[338534720,1726721487778,-1747.39,0.00014916,2]
[338534721,1726721487788,-538.3,0.00014916,2]
[338534722,1726721487798,-500.0,0.00014916,2]
[338534723,1726721487807,-2036.19,0.00014916,2]
[338534724,1726721487817,-820.59,0.00014916,2]
[338534725,1726721487828,-500.0,0.00014916,2]
[338534726,1726721487838,-2577.48,0.00014916,2]
[338534727,1726721487852,-500.0,0.00014916,2]
[338534728,1726721487861,-940.21,0.00014916,2]
[338534729,1726721487872,-500.0,0.00014916,2]
[338534730,1726721487881,-500.0,0.00014916,2]
[338534731,1726721487891,-500.0,0.00014916,2]
[338534732,1726721487901,-4295.5,0.00014916,2]
[338534733,1726721487911,-2214.16,0.00014916,2]
[338534734,1726721487922,-804.83,0.00014916,2]
[338534735,1726721487933,-500.0,0.00014916,2]
[338534736,1726721487942,-5318.52,0.00014916,2]
[338534737,1726721487952,-2948.94,0.00014916,2]
[338534738,1726721487963,-500.0,0.00014916,2]
[338534739,1726721487972,-883.11,0.00014916,2]
[338534740,1726721487982,-2430.05,0.00014916,2]
[338534741,1726721487993,-1347.59,0.00014916,2]
[338534742,1726721488002,-500.0,0.00014916,2]
[338534743,1726721488012,-1784.36,0.00014916,2]
[338534744,1726721488022,-543.65,0.00014916,2]
[338534745,1726721488031,-500.0,0.00014916,2]
[338534746,1726721488042,-4898.56,0.00014916,2]
[338534747,1726721488052,-5474.71,0.00014916,2]
[338534748,1726721488061,-3076.01,0.00014916,2]
[338534749,1726721488071,-1838.4,0.00014916,2]
[338534750,1726721488082,-2927.56,0.00014916,2]
[338534751,1726721488091,-3222.22,0.00014916,2]
[338534752,1726721488101,-513.77,0.00014916,2]
[338534753,1726721488112,-9867.63,0.00014916,2]
[338534754,1726721488122,-1000.0,0.00014916,2]
[338534755,1726721488132,-500.0,0.00014916,2]
[338534756,1726721488142,-3670.49,0.00014916,2]
[338534757,1726721488152,-2599.93,0.00014916,2]
[338534758,1726721488161,-3218.25,0.00014916,2]
[338534759,1726721488171,-500.0,0.00014917,2]
[338534760,1726721488181,-500.0,0.00014917,2]
[338534761,1726721488191,-500.0,0.00014917,2]
[338534762,1726721488201,-500.0,0.00014917,2]
[338534763,1726721488210,-1036.42,0.00014917,2]
[338534764,1726721488219,-1814.59,0.00014917,2]
[338534765,1726721488229,-568.03,0.00014917,2]
[338534766,1726721488239,-684.07,0.00014917,2]
[338534767,1726721488249,-500.0,0.00014917,2]
[338534768,1726721488258,-1592.43,0.00014917,2]
[338534769,1726721488267,-1457.88,0.00014917,2]
[338534770,1726721488277,-500.0,0.00014917,2]
[338534771,1726721488287,-1465.29,0.00014917,2]
[338534772,1726721488296,-1173.04,0.00014917,2]
[338534773,1726721488305,-1533.0,0.00014917,2]
[338534774,1726721488315,-554.01,0.00014917,2]
[338534775,1726721488324,-500.0,0.00014917,2]
[338534776,1726721488334,-727.95,0.00014917,2]
[338534777,1726721488343,-500.0,0.00014917,2]
[338534778,1726721488352,-500.0,0.00014917,2]
[338534779,1726721488362,-500.0,0.00014917,2]
[338534780,1726721488371,-500.0,0.00014917,2]
[338534781,1726721488381,-500.0,0.00014917,2]
[338534782,1726721488390,-524.98,0.00014917,2]
[338534783,1726721488400,-500.0,0.00014917,2]
[338534784,1726721488410,-750.88,0.00014917,2]
[338534785,1726721488419,-890.61,0.00014917,2]
[338534786,1726721488430,-172.67206656,0.00014917,2]
[338534787,1726721488440,-500.0,0.00014917,2]
[338534788,1726721488451,-500.0,0.00014917,2]
[338534789,1726721488460,-857.99,0.00014917,2]
[338534790,1726721488470,-651.41,0.00014917,2]
[338534791,1726721488480,-714.27,0.00014917,2]
[338534792,1726721488490,-1246.84,0.00014917,2]
[338534793,1726721488499,-580.24,0.00014917,2]
[338534794,1726721488509,-1875.92,0.00014917,2]
[338534795,1726721488519,-1045.57,0.00014917,2]
[338534796,1726721488529,-1994.98,0.00014917,2]
[338534797,1726721488538,-500.0,0.00014917,2]
[338534798,1726721488548,-500.0,0.00014917,2]
[338534799,1726721488558,-500.0,0.00014917,2]
[338534800,1726721488567,-1444.54,0.00014917,2]
[338534801,1726721488576,-252.15187081,0.00014917,2]
[338534802,1726721488586,-885.15,0.00014917,2]
[338534803,1726721488596,-882.5,0.00014917,2]
[338534804,1726721488605,-500.0,0.00014917,2]
[338534805,1726721488615,-1126.2,0.00014917,2]
[338534806,1726721488625,-1036.13,0.00014917,2]
[338534807,1726721488634,-500.0,0.00014917,2]
[338534808,1726721488644,-1210.41,0.00014917,2]
[338534809,1726721488653,-500.0,0.00014917,2]
[338534810,1726721488662,-721.93,0.00014917,2]
[338534811,1726721488673,-890.07,0.00014917,2]
[338534812,1726721488682,-391.88619949,0.00014917,2]
[338534813,1726721488692,-500.0,0.00014917,2]
[338534814,1726721488702,-500.0,0.00014917,2]
[338534815,1726721488712,-500.0,0.00014917,2]
[338534816,1726721488721,-531.95,0.00014917,2]
[338534817,1726721488731,-847.94,0.00014917,2]
[338534818,1726721488741,-500.0,0.00014917,2]
[338534819,1726721488750,-500.0,0.00014917,2]
[338534820,1726721488759,-1247.13,0.00014917,2]
[338534821,1726721488768,-966.21,0.00014917,2]
[338534822,1726721488777,-500.0,0.00014917,2]
[338534823,1726721488786,-1171.32,0.00014917,2]
[338534824,1726721488795,-500.0,0.00014917,2]
[338534825,1726721488804,-500.0,0.00014917,2]
[338534826,1726721488814,-1014.34,0.00014917,2]
[338534827,1726721488823,-500.0,0.00014917,2]
[338534828,1726721488832,-500.0,0.00014917,2]
[338534829,1726721488841,-708.48,0.00014917,2]
[338534830,1726721488855,-500.0,0.00014917,2]
[338534831,1726721488864,-500.0,0.00014917,2]
[338534832,1726721488873,-1077.73,0.00014917,2]
[338534833,1726721488883,-923.6,0.00014917,2]
[338534834,1726721488892,-500.0,0.00014917,2]
[338534835,1726721488902,-500.0,0.00014917,2]
[338534836,1726721488911,-500.0,0.00014917,2]
[338534837,1726721488922,-588.88,0.00014917,2]
[338534838,1726721488931,-500.0,0.00014917,2]
[338534839,1726721488941,-1256.87,0.00014917,2]
[338534840,1726721488950,-620.25,0.00014917,2]
[338534841,1726721489247,-500.0,0.00014917,2]
[338534842,1726721489257,-1477.36,0.00014917,2]
[338534843,1726721489267,-500.0,0.00014917,2]
[338534844,1726721489276,-1451.44,0.00014917,2]
[338534845,1726721489285,-500.0,0.00014917,2]
[338534846,1726721489294,-500.0,0.00014917,2]
[338534847,1726721489304,-1352.1,0.00014917,2]
[338534848,1726721489313,-792.65,0.00014917,2]
[338534849,1726721489322,-2085.39,0.00014917,2]
[338534850,1726721489331,-500.0,0.00014917,2]
[338534851,1726721489341,-1403.01,0.00014917,2]
[338534852,1726721489350,-1578.28,0.00014917,2]
[338534853,1726721489359,-707.51,0.00014917,2]
[338534854,1726721489369,-1491.79,0.00014917,2]
[338534855,1726721489378,-500.0,0.00014917,2]
[338534856,1726721489388,-500.0,0.00014917,2]
[338534857,1726721489397,-850.21,0.00014917,2]
[338534858,1726721489406,-500.0,0.00014917,2]
[338534859,1726721489415,-500.0,0.00014917,2]
[338534860,1726721489425,-500.0,0.00014917,2]
[338534861,1726721489434,-654.46,0.00014917,2]
[338534862,1726721489444,-583.16,0.00014917,2]
[338534863,1726721489453,-500.0,0.00014917,2]
[338534864,1726721489462,-723.35,0.00014917,2]
[338534865,1726721489472,-500.0,0.00014917,2]
[338534866,1726721489482,-500.0,0.00014917,2]
[338534867,1726721489492,-1344.97,0.00014917,2]
[338534868,1726721489501,-657.41,0.00014917,2]
[338534869,1726721489511,-500.0,0.00014917,2]
[338534870,1726721489522,-500.0,0.00014917,2]
[338534871,1726721489532,-500.0,0.00014917,2]
[338534872,1726721489543,-500.0,0.00014917,2]
[338534873,1726721489554,-500.0,0.00014917,2]
[338534874,1726721489563,-981.87,0.00014917,2]
[338534875,1726721489573,-500.0,0.00014917,2]
[338534876,1726721489584,-601.13,0.00014917,2]
[338534877,1726721489594,-500.0,0.00014917,2]
[338534878,1726721489603,-1313.14,0.00014917,2]
[338534879,1726721489613,-791.53,0.00014917,2]
[338534880,1726721489622,-500.0,0.00014917,2]
[338534881,1726721489631,-500.0,0.00014917,2]
[338534882,1726721489640,-1032.67,0.00014917,2]
[338534883,1726721489650,-1692.84,0.00014917,2]
[338534884,1726721489659,-198.8433484,0.00014917,2]
[338534885,1726721489669,-500.0,0.00014917,2]
[338534886,1726721489678,-3156.33,0.00014917,2]
[338534887,1726721489687,-773.4,0.00014917,2]
[338534888,1726721489696,-636.75,0.00014917,2]
[338534889,1726721489706,-500.0,0.00014917,2]
[338534890,1726721489715,-1111.86,0.00014917,2]
[338534891,1726721489724,-1757.75,0.00014917,2]
[338534892,1726721489734,-500.0,0.00014917,2]
[338534893,1726721489753,-1369.89,0.00014917,2]
[338534894,1726721489762,-535.86,0.00014917,2]
[338534895,1726721489772,-500.0,0.00014917,2]
[338534896,1726721489781,-630.25,0.00014917,2]
[338534897,1726721489791,-500.0,0.00014917,2]
[338534898,1726721489800,-633.69,0.00014917,2]
[338534899,1726721489810,-1346.96,0.00014917,2]
[338534900,1726721489819,-500.0,0.00014917,2]
[338534901,1726721489829,-500.0,0.00014917,2]
[338534902,1726721489838,-1154.06,0.00014917,2]
[338534903,1726721489849,-500.0,0.00014917,2]
[338534904,1726721489859,-500.0,0.00014917,2]
[338534905,1726721489868,-996.69,0.00014917,2]
[338534906,1726721489878,-500.0,0.00014917,2]
[338534907,1726721489894,-500.0,0.00014917,2]
[338534908,1726721489904,-500.0,0.00014917,2]
[338534909,1726721489914,-1532.28,0.00014917,2]
[338534910,1726721489926,-861.43,0.00014917,2]
[338534911,1726721489937,-929.8,0.00014917,2]
[338534912,1726721489947,-1992.79,0.00014917,2]
[338534913,1726721489956,-1463.32,0.00014917,2]
[338534914,1726721489966,-1543.93,0.00014917,2]
[338534915,1726721489976,-500.0,0.00014917,2]
[338534916,1726721489987,-500.0,0.00014917,2]
[338534917,1726721489999,-2846.54,0.00014917,2]
[338534918,1726721490010,-500.0,0.00014917,2]
[338534919,1726721490020,-500.0,0.00014917,2]
[338534920,1726721490033,-3753.39,0.00014917,2]
[338534921,1726721490043,-1086.72,0.00014917,2]
[338534922,1726721490052,-1858.44,0.00014917,2]
[338534923,1726721490062,-500.0,0.00014917,2]
[338534924,1726721490075,-3862.97,0.00014917,2]
[338534925,1726721490085,-2907.25,0.00014917,2]
[338534926,1726721490096,-3373.08,0.00014917,2]
[338534927,1726721490107,-500.0,0.00014917,2]
[338534928,1726721490117,-937.4,0.00014917,2]
[338534929,1726721490127,-1812.66,0.00014917,2]
[338534930,1726721490137,-2339.37,0.00014917,2]
[338534931,1726721490148,-500.0,0.00014917,2]
[338534932,1726721490158,-1437.14,0.00014917,2]
[338534933,1726721490168,-1826.31,0.00014917,2]
[338534934,1726721490178,-1580.63,0.00014917,2]
[338534935,1726721490188,-1833.27,0.00014917,2]
[338534936,1726721490198,-1564.65,0.00014917,2]
[338534937,1726721490208,-500.0,0.00014917,2]
[338534938,1726721490218,-500.0,0.00014917,2]
[338534939,1726721490227,-616.44,0.00014917,2]
[338534940,1726721490239,-559.41,0.00014917,2]
[338534941,1726721490251,-500.0,0.00014917,2]
[338534942,1726721490261,-500.0,0.00014917,2]
[338534943,1726721490271,-2673.38,0.00014917,2]
[338534944,1726721490281,-500.0,0.00014917,2]
[338534945,1726721490291,-1762.66,0.00014917,2]
[338534946,1726721490301,-1599.88,0.00014917,2]
[338534947,1726721490310,-500.0,0.00014917,2]
[338534948,1726721490320,-500.0,0.00014917,2]
[338534949,1726721490330,-500.0,0.00014917,2]
[338534950,1726721490340,-519.0,0.00014917,2]
[338534951,1726721490350,-571.39,0.00014917,2]
[338534952,1726721490360,-2220.04,0.00014917,2]
[338534953,1726721490370,-570.65196824,0.00014917,2]
[338534954,1726721490380,-703.06,0.00014917,2]
[338534955,1726721490391,-1665.65,0.00014917,2]
[338534956,1726721490402,-1120.78,0.00014917,2]
[338534957,1726721490412,-1166.36,0.00014917,2]
[338534958,1726721490422,-2180.37,0.00014917,2]
[338534959,1726721490432,-500.0,0.00014917,2]
[338534960,1726721490442,-2089.01,0.00014917,2]
[338534961,1726721490452,-500.0,0.00014917,2]
[338534962,1726721490462,-500.0,0.00014917,2]
[338534963,1726721490472,-623.38,0.00014917,2]
[338534964,1726721490483,-1364.88,0.00014917,2]
[338534965,1726721490494,-3011.4,0.00014917,2]
[338534966,1726721490504,-521.69,0.00014917,2]
[338534967,1726721490514,-500.0,0.00014917,2]
[338534968,1726721490524,-1429.86,0.00014917,2]
[338534969,1726721490533,-500.0,0.00014917,2]
[338534970,1726721490543,-3343.07,0.00014917,2]
[338534971,1726721490553,-892.59,0.00014917,2]
[338534972,1726721490563,-1571.57,0.00014917,2]
[338534973,1726721490572,-1001.27,0.00014917,2]
[338534974,1726721490582,-996.35,0.00014917,2]
[338534975,1726721490593,-1453.38,0.00014917,2]
[338534976,1726721490603,-500.0,0.00014917,2]
[338534977,1726721490613,-929.84,0.00014917,2]
[338534978,1726721490623,-500.0,0.00014917,2]
[338534979,1726721490633,-2250.97,0.00014917,2]
[338534980,1726721490643,-511.36,0.00014917,2]
[338534981,1726721490653,-500.0,0.00014917,2]
[338534982,1726721490663,-3796.74,0.00014917,2]
[338534983,1726721490673,-500.0,0.00014917,2]
[338534984,1726721490682,-500.0,0.00014917,2]
[338534985,1726721490691,-842.51,0.00014917,2]
[338534986,1726721490701,-1114.5,0.00014917,2]
[338534987,1726721490711,-704.72,0.00014917,2]
[338534988,1726721490721,-597.39430037,0.00014917,2]
[338534989,1726721490731,-939.23,0.00014917,2]
[338534990,1726721490742,-747.48,0.00014917,2]
[338534991,1726721490752,-2319.89,0.00014917,2]
[338534992,1726721490762,-1331.64,0.00014917,2]
[338534993,1726721490772,-849.39,0.00014917,2]
[338534994,1726721490783,-1530.11,0.00014917,2]
[338534995,1726721490794,-3358.66,0.00014917,2]
[338534996,1726721490803,-2550.56,0.00014917,2]
[338534997,1726721490814,-1268.13,0.00014917,2]
[338534998,1726721490826,-1988.95,0.00014917,2]
[338534999,1726721490836,-2973.05,0.00014917,2]
[338535000,1726721490849,-1758.32,0.00014917,2]
[338535001,1726721490860,-500.0,0.00014917,2]
[338535002,1726721490870,-1591.9,0.00014917,2]
[338535003,1726721490879,-513.53,0.00014917,2]
[338535004,1726721490890,-2784.12,0.00014917,2]
[338535005,1726721490899,-1092.38,0.00014917,2]
[338535006,1726721490909,-3145.68,0.00014917,2]
[338535007,1726721490919,-545.73,0.00014917,2]
[338535008,1726721490929,-500.0,0.00014917,2]
[338535009,1726721490939,-697.02,0.00014917,2]
[338535010,1726721490950,-571.98,0.00014917,2]
[338535011,1726721490961,-500.0,0.00014917,2]
[338535012,1726721490971,-1420.83,0.00014917,2]
[338535013,1726721490981,-966.62,0.00014917,2]
[338535014,1726721490992,-2282.0,0.00014917,2]
[338535015,1726721491001,-500.0,0.00014917,2]
[338535016,1726721491011,-1429.48,0.00014917,2]
[338535017,1726721491020,-500.0,0.00014917,2]
[338535018,1726721491029,-665.03,0.00014917,2]
[338535019,1726721491039,-500.0,0.00014917,2]
[338535020,1726721491048,-1036.68,0.00014917,2]
[338535021,1726721491058,-3190.95,0.00014917,2]
[338535022,1726721491068,-888.56,0.00014917,2]
[338535023,1726721491077,-613.97,0.00014917,2]
[338535024,1726721491087,-500.0,0.00014917,2]
[338535025,1726721491097,-500.0,0.00014917,2]
[338535026,1726721491107,-1798.32,0.00014917,2]
[338535027,1726721491116,-500.0,0.00014917,2]
[338535028,1726721491126,-4217.42,0.00014917,2]
[338535029,1726721491136,-1039.49,0.00014917,2]
[338535030,1726721491146,-2936.3,0.00014917,2]
[338535031,1726721491156,-997.99,0.00014917,2]
[338535032,1726721491166,-500.0,0.00014917,2]
[338535033,1726721491175,-1100.68,0.00014917,2]
[338535034,1726721491185,-500.0,0.00014917,2]
[338535035,1726721491194,-1143.42,0.00014917,2]
[338535036,1726721491204,-594.3,0.00014917,2]
[338535037,1726721491213,-858.43,0.00014917,2]
[338535038,1726721491223,-3070.41,0.00014917,2]
[338535039,1726721491233,-957.37,0.00014917,2]
[338535040,1726721491242,-500.0,0.00014917,2]
[338535041,1726721491251,-500.0,0.00014917,2]
[338535042,1726721491261,-500.0,0.00014917,2]
[338535043,1726721491271,-2478.33,0.00014917,2]
[338535044,1726721491280,-1133.03,0.00014917,2]
[338535045,1726721491290,-529.43,0.00014917,2]
[338535046,1726721491300,-500.0,0.00014917,2]
[338535047,1726721491310,-1731.86,0.00014917,2]
[338535048,1726721491319,-600.01,0.00014917,2]
[338535049,1726721491330,-754.81,0.00014917,2]
[338535050,1726721491339,-531.92,0.00014917,2]
[338535051,1726721491349,-500.0,0.00014917,2]
[338535052,1726721491358,-500.0,0.00014917,2]
[338535053,1726721491368,-500.0,0.00014917,2]
[338535054,1726721491380,-861.22,0.00014917,2]
[338535055,1726721491389,-500.0,0.00014917,2]
[338535056,1726721491399,-647.3,0.00014917,2]
[338535057,1726721491409,-1132.4,0.00014917,2]
[338535058,1726721491419,-500.0,0.00014917,2]
[338535059,1726721491429,-500.0,0.00014917,2]
[338535060,1726721491438,-3184.39,0.00014917,2]
[338535061,1726721491448,-1351.79,0.00014917,2]
[338535062,1726721491459,-1087.97,0.00014917,2]
[338535063,1726721491468,-500.0,0.00014917,2]
[338535064,1726721491478,-3249.66,0.00014917,2]
[338535065,1726721491487,-856.38,0.00014917,2]
[338535066,1726721491497,-678.37,0.00014917,2]
[338535067,1726721491508,-500.0,0.00014917,2]
[338535068,1726721491517,-1823.36,0.00014917,2]
[338535069,1726721491528,-500.0,0.00014917,2]
[338535070,1726721491538,-929.22,0.00014917,2]
[338535071,1726721491548,-747.18,0.00014917,2]
[338535072,1726721491557,-500.0,0.00014917,2]
[338535073,1726721491566,-2098.69,0.00014917,2]
[338535074,1726721491576,-580.79,0.00014917,2]
[338535075,1726721491585,-876.33,0.00014917,2]
[338535076,1726721491594,-675.87,0.00014917,2]
[338535077,1726721491604,-849.52,0.00014917,2]
[338535078,1726721491613,-726.23,0.00014917,2]
[338535079,1726721491623,-500.0,0.00014917,2]
[338535080,1726721491632,-3894.5,0.00014917,2]
[338535081,1726721491641,-768.99,0.00014917,2]
[338535082,1726721491651,-514.81,0.00014917,2]
[338535083,1726721491754,-500.0,0.00014917,2]
[338535084,1726721491763,-1678.77,0.00014917,2]
[338535085,1726721491773,-3588.29,0.00014917,2]
[338535086,1726721491782,-561.88,0.00014917,2]
[338535087,1726721491791,-3612.63,0.00014917,2]
[338535088,1726721491800,-500.0,0.00014917,2]
[338535089,1726721491809,-1165.21,0.00014917,2]
[338535090,1726721491819,-500.0,0.00014917,2]
[338535091,1726721491828,-1886.85,0.00014917,2]
[338535092,1726721491836,-2851.24,0.00014917,2]
[338535093,1726721491847,-5211.22,0.00014917,2]
[338535094,1726721491858,-2563.28,0.00014917,2]
[338535095,1726721491867,-628.73,0.00014917,2]
[338535096,1726721491876,-747.64,0.00014917,2]
[338535097,1726721491885,-1122.98,0.00014917,2]
[338535098,1726721491895,-510.27,0.00014917,2]
[338535099,1726721491905,-4847.2,0.00014917,2]
[338535100,1726721491914,-1711.51,0.00014917,2]
[338535101,1726721491925,-857.76,0.00014917,2]
[338535102,1726721491935,-500.0,0.00014917,2]
[338535103,1726721491944,-1224.38,0.00014917,2]
[338535104,1726721491954,-5936.67,0.00014917,2]
[338535105,1726721491963,-500.0,0.00014917,2]
[338535106,1726721491972,-729.36,0.00014917,2]
[338535107,1726721491982,-2012.25,0.00014917,2]
[338535108,1726721491993,-500.0,0.00014917,2]
[338535109,1726721492002,-1526.2,0.00014917,2]
[338535110,1726721492011,-2702.45,0.00014917,2]
[338535111,1726721492020,-500.0,0.00014917,2]
[338535112,1726721492030,-500.0,0.00014917,2]
[338535113,1726721492039,-595.84,0.00014917,2]
[338535114,1726721492048,-2589.63,0.00014917,2]
[338535115,1726721492057,-500.0,0.00014917,2]
[338535116,1726721492066,-537.13,0.00014917,2]
[338535117,1726721492075,-1383.21,0.00014917,2]
[338535118,1726721492084,-500.0,0.00014917,2]
[338535119,1726721492094,-1474.98,0.00014917,2]
[338535120,1726721492103,-1873.98,0.00014917,2]
[338535121,1726721492113,-1686.47,0.00014917,2]
[338535122,1726721492121,-500.0,0.00014917,2]
[338535123,1726721492131,-500.0,0.00014917,2]
[338535124,1726721492141,-620.39,0.00014917,2]
[338535125,1726721492151,-1845.18,0.00014917,2]
[338535126,1726721492160,-791.54,0.00014917,2]
[338535127,1726721492169,-669.2,0.00014917,2]
[338535128,1726721492179,-1162.75,0.00014917,2]
[338535129,1726721492188,-500.0,0.00014917,2]
[338535130,1726721492198,-500.0,0.00014917,2]
[338535131,1726721492208,-1305.31,0.00014917,2]
[338535132,1726721492217,-1911.46,0.00014917,2]
[338535133,1726721492227,-500.0,0.00014917,2]
[338535134,1726721492236,-500.0,0.00014917,2]
[338535135,1726721492254,-500.0,0.00014917,2]
[338535136,1726721492263,-1733.02,0.00014917,2]
[338535137,1726721492272,-1925.43,0.00014917,2]
[338535138,1726721492282,-215.0,0.0001496,2]
[338535139,1726721492291,-215.0,0.0001496,2]
[338535140,1726721492300,-219.0,0.0001497,2]
[338535141,1726721492309,-238.0,0.0001497,2]
[338535142,1726721492319,-202.0,0.0001497,2]
[338535143,1726721492328,-207.0,0.0001497,2]
[338535144,1726721492338,-201.0,0.0001497,2]
[338535145,1726721492347,-202.0,0.0001497,2]
[338535146,1726721492356,-201.0,0.0001497,2]
[338535147,1726721492365,-207.0,0.0001497,2]
[338535148,1726721492375,-8437.2338925,0.0001498,3]
[338535149,1726721492383,-1950.86,0.0001499,2]
[338535150,1726721492393,-600.35903061,0.0001499,2]
[338535151,1726721492402,-1585.026253,0.0001499,2]
[338535152,1726721492411,-1997.1013536,0.0001499,2]
[338535153,1726721492420,-2409.1764542,0.0001499,2]
[338535154,1726721492429,-2821.2515548,0.0001499,2]
[338535155,1726721492438,-3233.3266554,0.0001499,2]
[338535156,1726721492447,-8635.0258719,0.0001499,2]
[338535157,1726721492456,-10879.9597636,0.0001499,2]
[338535158,1726721492465,-13124.8936554,0.0001499,2]
[338535159,1726721492475,-15369.8275472,0.0001499,2]
[338535160,1726721492485,-17614.7614389,0.0001499,2]
[338535161,1726721492496,-302.2875877,0.0001499,2]
[338535162,1726721492506,-379.6667842,0.0001499,2]
[338535163,1726721492515,-457.0459807,0.0001499,2]
[338535164,1726721492524,-534.4251772,0.0001499,2]
[338535165,1726721492533,-611.8043737,0.0001499,2]
[338535166,1726721492542,-1844.4169813,0.0001499,2]
[338535167,1726721492551,-1534.0175205,0.0001499,2]
[338535168,1726721492561,-1223.6180596,0.0001499,2]
[338535169,1726721492570,-913.2185987,0.0001499,2]
[338535170,1726721492579,-602.8191378,0.0001499,2]
[338535171,1726721492588,-11996.4143888,0.0001499,2]
[338535172,1726721492597,-9962.541592,0.0001499,2]
[338535173,1726721492606,-7928.6687952,0.0001499,2]
[338535174,1726721492616,-5894.7959983,0.0001499,2]